Cogmind - Beta 15 *** ADVENTURER MODE // 2025.07.30 @ 09:23:38 Player: BattleBruvva Result: Destroyed by D-53 Grenadier with Mini Grenade Launcher Performance ------------- Evolutions (0) 0 Regions Visited (2) 400 Robots Destroyed (20) 100 Value Destroyed (491) 491 Prototype IDs (0) 0 Alien Tech Used (0) 0 Bonus (0) 0 TOTAL SCORE: 991 Bonus ------- None Cogmind --------- Core Integrity 0/250 Matter 265/300 Energy 52/100 System Corruption 0% Temperature Cool (63) Movement Core (250) Ox4 Location -10/Mines Parts ------- > --- POWER (1) -------- (None) > --- PROPULSION (2) --- (None) > --- UTILITY (2) ------ Medium Storage Unit Seismic Detector > --- WEAPON (2) ------- Particle Cannon > --- INVENTORY (10) --- Improved Heat Sink High-capacity Matter Pod (77) Visual Processing Unit Sensor Array Improved Terrain Scanner Light Armor Plating Small Laser Assault Rifle Mining Laser Peak State ------------ > --- POWER ------------ Ion Engine > --- PROPULSION ------- Light Treads Light Treads > --- UTILITY ---------- Medium Storage Unit Seismic Detector > --- WEAPON ----------- Particle Cannon Assault Rifle > --- INVENTORY -------- Light Ion Engine High-capacity Matter Pod Visual Processing Unit Improved Terrain Scanner EM Pulse Gun Small Laser Assault Rifle Mining Laser [Rating: 9] Favorites ----------- Power Ion Engine Engine Ion Engine Propulsion Light Treads Treads Light Treads Utility Seismic Detector Device Seismic Detector Storage Medium Storage Unit Weapon Assault Rifle Energy Gun Small Laser Energy Cannon Particle Cannon Ballistic Gun Assault Rifle Launcher Grenade Launcher Build | -11 -10 -10 ------- Run | Yrd Mat Min Slots Evolved . | . . . Power . | . . . Propulsion . | . . . Utility . | . . . Weapon . | . . . Parts Attached 17 | 8 8 1 Power 4 | 1 3 . Engine 4 | 1 3 . Core . | . . . Reactor . | . . . Propulsion 2 | 2 . . Treads 2 | 2 . . Leg . | . . . Wheel . | . . . Hover . | . . . Flight . | . . . Utility 3 | 2 1 . Device 1 | 1 . . Storage 2 | 1 1 . Processor . | . . . Hackware . | . . . Protection . | . . . Artifact . | . . . Weapon 8 | 3 4 1 Energy Gun 4 | 2 2 . Energy Cannon 1 | . 1 . Ballistic Gun 2 | 1 1 . Ballistic Cannon . | . . . Launcher 1 | . . 1 Special Weapon . | . . . Impact Weapon . | . . . Slashing Weapon . | . . . Piercing Weapon . | . . . Special Melee Weapon . | . . . Unidentified Prototypes . | . . . Parts Lost 5 | . . 5 Power 1 | . . 1 Propulsion 2 | . . 2 Utility . | . . . Weapon 2 | . . 2 Highest Loss Streak 5 | . . 5 To Critical Strikes . | . . . Average Backups 7 | 1 8 9 Power . | . . . Propulsion . | . . . Utility 3 | . 3 6 Weapon 3 | . 3 3 Tool/Special . | . . . Unused Backups 7 | . 1 6 Power . | . . . Propulsion . | . . . Utility 6 | . . 6 Weapon 1 | . 1 . Tool/Special . | . . . Average Slot Usage (%) 98 | . 100 78 Engine 13 | . 14 9 Treads 27 | . 28 16 Device 14 | . 14 14 Storage 14 | . 14 14 Energy Gun 8 | . 8 9 Ballistic Gun 18 | . 19 9 Peak Build Rating 9 | 7 9 8 Average Rating 7 | 5 7 6 On Entrance 5 | . 7 8 Naked Turns . | . . . Heaviest Build 22 | 14 22 20 Greatest Support 40 | 40 40 40 Greatest Overweight (x) 3 | 3 . . Average Overweight (x) . | . . . Largest Inventory Capacity 10 | 8 10 10 Average Capacity 9 | 7 9 10 Most Carried 10 | 4 10 10 Average Carried 7 | 1 8 9 Final Capacity 10 | 8 10 10 Final Carried 10 | 4 10 9 Class Distribution -------------------- 100% | Mutant Dominant Class ---------------- Mutant | -10/Materials Mutant | -10/Mines Resources | -11 -10 -10 ----------- Run | Yrd Mat Min Matter Collected 642 | 182 428 32 Remotely . | . . . Salvage Created 617 | 42 455 120 Parts 41 | 8 27 6 Haulers Intercepted . | . . . Recyclers Shooed 1 | 1 . . Parts Field Recycled . | . . . Retrieved Matter . | . . . Parts Self-Destructed . | . . . Prevented . | . . . Kills | -11 -10 -10 ------- Run | Yrd Mat Min Combat Hostiles Destroyed 16 | . 13 3 Guns 13 | . 11 2 Cannons 2 | . 2 . Classes Destroyed 5 | 1 3 1 Tunneler 2 | 2 . . Watcher 2 | . 2 . Swarmer 6 | . 6 . Grunt 9 | . 7 2 Demolisher 1 | . . 1 Best Kill Streak 3 | 1 3 2 Combat Bots Only 3 | . 3 2 Max Kills in Single Turn 2 | 1 2 1 Gunslinging 1 | . 1 . Exploded . | . . . Melee . | . . . Uniques/NPCs Destroyed . | . . . Combat | -11 -10 -10 -------- Run | Yrd Mat Min Hostile Shots Fired 105 | . 71 34 Missed 22 | . 16 6 Hits 83 | . 55 28 Projectile 83 | . 55 28 AOE 23 | . . 23 Critical Strikes 1 | . . 1 Damage Taken 1154 | . 435 719 Core 256 | . 71 185 Absorbed by Shields . | . . . Ignored by Resistances 346 | . 142 204 Core Remaining (%) 100 | 100 . . Volleys Fired 56 | 6 39 11 Largest 2 | 2 2 2 Hottest 88 | 80 88 80 Shots Fired 107 | 12 78 17 Gun 92 | 12 70 10 Cannon 12 | . 8 4 Launcher 3 | . . 3 Special . | . . . Kinetic 65 | . 61 4 Thermal 33 | 6 17 10 Explosive 3 | . . 3 Electromagnetic 6 | 6 . . Robot Hit Streak 15 | 5 15 13 Robot Miss Streak 2 | 1 2 1 Penetration Max . | . . . Secondary Targets 2 | . 2 . Max Gunslinging Chain 1 | . 1 . Shots Hit Robots 81 | 9 59 13 Core Hits 34 | 2 22 10 Critical Kills 1 | . . 1 Critical Parts Destroyed . | . . . Critical Strikes 1 | . . 1 Meltdown 1 | . . 1 Melee Attacks . | . . . Impact . | . . . Slashing . | . . . Piercing . | . . . Sneak Attacks . | . . . Combat Hostiles . | . . . Follow-up Attacks . | . . . Damage Inflicted 1138 | 111 818 209 Guns 864 | 111 654 99 Cannons 224 | . 164 60 Explosions 50 | . . 50 Melee . | . . . Ramming . | . . . Kinetic 624 | . 575 49 Thermal 412 | 59 243 110 Explosive 50 | . . 50 Electromagnetic 52 | 52 . . Impact . | . . . Slashing . | . . . Piercing . | . . . Highest Corruption . | . . . Average Corruption . | . . . Corruption Purged . | . . . Corruption Blocked . | . . . Overload Shots . | . . . Overflow Damage . | . . . Projectiles . | . . . Explosions . | . . . Melee . | . . . Knockbacks . | . . . Impact . | . . . Kinetic . | . . . Secondary . | . . . Self-Inflicted Damage . | . . . Shots . | . . . Rammed . | . . . Targets Rammed . | . . . Kicked . | . . . Crushed . | . . . Highest Temperature 198 | 54 198 63 Average Temperature 41 | 23 58 18 Received Heat Transfer 297 | . 219 78 Siege Activations . | . . . Martial Activations . | . . . Shielding Activations . | . . . Robots Disrupted . | . . . Combat Hostiles . | . . . Robots Corrupted . | . . . Combat Hostiles . | . . . Parts Fried . | . . . Impact Corruptions . | . . . Robots Melted 1 | . . 1 Combat Hostiles 1 | . . 1 Parts Melted 2 | . 1 1 Heat Transferred 855 | 125 471 259 Parts Sabotaged . | . . . Parts Stolen . | . . . Parts Stripped . | . . . Power Chain Reactions . | . . . Alert | -11 -10 -10 ------- Run | Yrd Mat Min Maximum Alert Level . | . . . Low Security (%) 100 | 100 100 100 Level 1 . | . . . Level 2 . | . . . Level 3 . | . . . Level 4 . | . . . Level 5 . | . . . High Security . | . . . Max Security . | . . . Peak Influence 140 | 5 140 53 Initial 13 | . . 13 Average 38 | . 46 27 Influence Increases 487 | 10 384 93 Destroy 0b10 Robot/C 320 | . 260 60 Destroy 0b10 Robot/NC 20 | 10 10 . Destroy Leader 74 | . 54 20 Destroy Structure 13 | . . 13 Lose Combat Pursuer 60 | . 60 . Influence Decreases 451 | 10 344 97 Entered New Map 27 | . . 27 Time Decay 374 | 10 344 20 Lost Part 50 | . . 50 Squads Dispatched 2 | . 2 . Investigation 2 | . 2 . Extermination . | . . . Reinforcement . | . . . Assault . | . . . Garrison . | . . . Intercept . | . . . Searches Triggered . | . . . Construction Impeded . | . . . Haulers Reinforced . | . . . Active Scanning Responses . | . . . Cargo Convoy Interrupts . | . . . Stealth | -11 -10 -10 --------- Run | Yrd Mat Min Distress Signals . | . . . Communications Jammed . | . . . Distress Signals . | . . . Times Spotted 28 | . 21 7 Peak Tracking Total 8 | . 3 8 Tactical Retreats 4 | . 4 . Traps | -11 -10 -10 ------- Run | Yrd Mat Min Traps Triggered . | . . . Indirectly . | . . . Trap Hack Attempts . | . . . Triggered . | . . . Disarmed 1 | . 1 . Reprogrammed . | . . . Reused . | . . . Traps Extracted . | . . . Installed . | . . . Triggered . | . . . Machines | -11 -10 -10 ---------- Run | Yrd Mat Min Machines Disabled . | . . . Max in Single Turn . | . . . Machines Repaired . | . . . Machines Dismantled . | . . . Machines Sabotaged . | . . . Overloaded Fab Kills . | . . . Hacking | -11 -10 -10 --------- Run | Yrd Mat Min Machines Accessed 4 | . 4 . Terminals 3 | . 3 . Fabricators . | . . . Repair Stations . | . . . Recycling Units 1 | . 1 . Scanalyzers . | . . . Garrison Access . | . . . Total Hacks 11 | . 11 . Successful 10 | . 10 . Failed 1 | . 1 . Catastrophic . | . . . Database Lockouts . | . . . Manual 1 | . 1 . Terminals 9 | . 9 . Fabricators . | . . . Repair Stations . | . . . Recycling Units 2 | . 2 . Scanalyzers . | . . . Garrison Access . | . . . Terminal Hacks 8 | . 8 . Record 3 | . 3 . Branch Access Points 1 | . 1 . Emergency Access Points 1 | . 1 . Locate Traps 1 | . 1 . Disarm Traps 1 | . 1 . Maintenance Status 1 | . 1 . Fabricator Hacks . | . . . Repair Station Hacks . | . . . Recycling Unit Hacks 2 | . 2 . Report Inventory 1 | . 1 . Retrieve Components 1 | . 1 . Scanalyzer . | . . . Garrison Access Hacks . | . . . Unauthorized Hacks . | . . . Terminals . | . . . Fabricators . | . . . Repair Stations . | . . . Recycling Units . | . . . Scanalyzers . | . . . Garrison Access . | . . . Data Cores Recovered . | . . . Used . | . . . Hacking Detections 4 | . 4 . Full Trace Events 2 | . 2 . Feedback Events . | . . . Feedback Blocked . | . . . Robot Schematics Acquired . | . . . Robots Built . | . . . Authchips . | . . . Time . | . . . Total Robot Build Rating . | . . . Part Schematics Acquired . | . . . Parts Built . | . . . Authchips . | . . . Time . | . . . Total Part Build Rating . | . . . Parts Repaired . | . . . Time . | . . . Parts Recycled . | . . . Recycled Matter . | . . . Retrieved Matter . | . . . Retrieved Components 3 | . 3 . Parts Scanalyzed . | . . . Part Schematics Acquired . | . . . Parts Damaged . | . . . Bothacking | -11 -10 -10 ------------ Run | Yrd Mat Min Used RIF Installer . | . . . Robots Hacked . | . . . Non-combat . | . . . Combat . | . . . Robot Hacks Applied . | . . . Relay Couplers Released . | . . . Fabnet Peak Effective % . | . . . Robots Rewired . | . . . Allies Hacked . | . . . Hacks Repelled . | . . . Allies | -11 -10 -10 -------- Run | Yrd Mat Min Total Allies . | . . . Largest Group . | . . . Highest-Rated Group . | . . . Highest-Rated Ally . | . . . Total Orders . | . . . Ally Attacks . | . . . Total Damage . | . . . Kills . | . . . Allies Corrupted . | . . . Allies Melted . | . . . Intel | -11 -10 -10 ------- Run | Yrd Mat Min Active Infowar (turns) 1173 | 76 1048 49 Seismic 1173 | 76 1048 49 Robot Analysis Total . | . . . Derelict Logs Recovered . | . . . Drone Launches . | . . . Drone Recoveries . | . . . Exploration | -11 -10 -10 ------------- Run | Yrd Mat Min Turns Passed 1309 | 212 1048 49 Spaces Moved 670 | 115 547 8 Core 16 | 16 . . Treads 654 | 99 547 8 Legs . | . . . Wheels . | . . . Hover . | . . . Flight . | . . . Fastest Speed 50 | 50 160 160 Average Speed 158 | 152 160 160 Slowest Speed 200 | 200 160 160 Overloaded Moves . | . . . Propulsion Burnouts . | . . . Robots Hopped . | . . . Potential Cave-ins . | . . . Cave-ins Triggered . | . . . Exploration Rate (%) 27 | 7 67 9 Regions Visited 2 Branch Regions 1 Pre-discovered Areas . | . . . Known Exits Taken 1 | . 1 . Unknown Exits Taken 1 | 1 . . Scrap Searched . | . . . Spaces Dug . | . . . Terrain Destroyed 19 | . . 19 Melee . | . . . Projectile . | . . . AOE 19 | . . 19 Terrain Rammed . | . . . Walls Destroyed . | . . . Machines Disabled . | . . . Actions | -11 -10 -10 --------- Run | Yrd Mat Min Total 806 | 135 644 27 Wait 37 | . 31 6 Move 668 | 114 546 8 Hop . | . . . Pick Up 16 | 5 11 . Fast Attach 7 | 6 1 . Attach 2 | 1 . 1 Detach . | . . . Swap 11 | 3 7 1 Drop 9 | . 9 . Fire 56 | 6 39 11 Melee . | . . . Ram . | . . . Kick . | . . . Crush . | . . . Escape Stasis . | . . . Rewire . | . . . Trap . | . . . Miscellaneous . | . . . Route ------- -11/Scrapyard -10/Materials (discovered 4 exits: [*Mat x2] / *Min x2) -10/Mines History --------- Turn | Location | Event 19 | -11/Scrapyard | Discovered new exit (range 15) 213 | -11/Scrapyard | Entered Materials 314 | -10/Materials | Build established: Mutant 467 | -10/Materials | Discovered new exit (range 14) 912 | -10/Materials | Discovered new exit (range 11) 1015 | -10/Materials | Identified exit to Mines 1110 | -10/Materials | Discovered new exit (range 8) 1261 | -10/Materials | Entered Mines 1262 | -10/Mines | Assembled infested the area 1299 | -10/Mines | Core integrity fell below 50% 1305 | -10/Mines | Core integrity fell below 20% 1310 | -10/Mines | Destroyed by D-53 Grenadier with Mini Grenade Launcher Last Messages --------------- Grenade Launcher destroyed. The unstable cave ceiling collapses. as-45569 destroyed. HV Slug penetrates Wall. U-05 Engineer builds a Wall. HV Slug penetrates as-89928. as-89928 suffers critical hit (Destroy). as-89928 destroyed. HV Slug penetrates Earth. The unstable cave ceiling collapses. D-53 Grenadier suffers critical hit (Meltdown). Lgt. Deuterium Engine melted. HV Slug penetrates as-52588. as-52588 destroyed. HV Slug penetrates as-66026. as-66026 suffers critical hit (Destroy). as-66026 destroyed. U-05 Engineer lays Concrete. The unstable cave ceiling collapses. U-05 Engineer builds a Wall. Map ----- +----------------------------------------------------+ | | | | | | | | | | | | | | | | | | | | | | | ??????????????????????????????????????????? | | ??????????????????????????????????????????? | | ??????????????????????#???????????????????? | | ??????????????????????# ??????????????????? | | ?????????????????????## ??????????????????? | | ?????????????????????# ??????????????????? | | ?????????????????????# ???????#??????????? | | ?????????????????????# ??????%#??????????? | | ?????????????????????# #????g%#?#????????? | | ?????????????????????? ####%%# #????????? | | ?????????????????????## %% #?????????? | | ????????????????????## % #?????????? | | ????????????????#???# % #?????????? | | ?????????????# ## ## #?????????? | | ?????????????# @# ######????? | | ?????????????????#### #????? | | ????????????????????# #### #????? | | ???????????????????# # #?????????? | | ?????????????????? ??????????? | | ?????????????????# [= ###?????????? | | ????????????????# %d =% #??????????? | | ????????????????# ####??????????? | | ????????????????# #?????????????? | | ????????????????#%# ?????????????? | | ????????????????#u# ????????????? | | ????????????????# ### #???????????? | | ????????????????# ??## #???????????? | | ?????????????????????### ##???????????? | | ???????????????????????#######????????????? | | ??????????????????????????????????????????? | | ??????????????????????????????????????????? | | ??????????????????????????????????????????? | | ??????????????????????????????????????????? | | ??????????????????????????????????????????? | | ??????????????????????????????????????????? | | ??????????????????????????????????????????? | | ??????????????????????????????????????????? | | ??????????????????????????????????????????? | | ??????????????????????????????????????????? | +----------------------------------------------------+ Best States ------------- Heat Dissipation 25 Energy Generation 10 Energy Capacity 250 Matter Stores 300 Matter Capacity 300 Sight Range 16 Terrain Scan Density 10 Resistance: KI 20 Resistance: TH 20 Resistance: EX 20 Resistance: EM 20 Resistance: I 20 Resistance: S 20 Resistance: P 20 Evasion (%) 40 Recoil Reduction 2 Offensive Hacking 10 Item Schematics ----------------- None Robot Schematics ------------------ None Fabricated ------------ Nothing Repaired ---------- Nothing Alien Tech Used ----------------- None Achievements -------------- None Challenges ------------ None Game ------ Seed SniperSpectralNanoactuators Manual? 0 Play Time 00:20:32 Cumulative 24.0 hours Start 2025.07.30 @ 07:52:55 End 2025.07.30 @ 09:23:38 Sessions 1 Manual Loads 0 Difficulty Adventurer Special Mode None Game No. 4 Rogue 0 Adventurer 4 Explorer 0 Win Type - Total 2 Types 0/0/2/0/0/0/0/0/0/0 Lore% 7 Gallery% 27 Achievement% 32 Wizard Run 0 Options --------- Layout 1 ASCII 0 Keyboard 1 Movement Arrows Keybinds 0 Fullscreen 1 Font 24/Smallcaps Map View 50x35 Zoom Use 0% Tactical HUD 0 Map Filters NONE Filters NONE Steam 1 RUN: 7fdf5feb-f8f7-4723-be43-23e1ac21f4f3